[Event "Early-Titled-Tuesday-Blitz-March-05-2024"]
[Site "Chess.com"]
[Date "2024.03.05"]
[Round "11"]
[White "ChessLebaneseSalah"]
[Black "littlepinkyboy"]
[Result "1-0"]
[WhiteElo "2583"]
[BlackElo "2662"]
[TimeControl "180+1"]
[EndTime "10:09:55 PST"]
[Termination "ChessLebaneseSalah won on time"]

1. e4 {[%clk 0:03:00.9]} 1... c5 {[%clk 0:02:58]} 2. Nf3 {[%clk 0:03:00.8]} 2...
e6 {[%clk 0:02:56.9]} 3. d4 {[%clk 0:02:57.5]} 3... cxd4 {[%clk 0:02:57.8]} 4.
Nxd4 {[%clk 0:02:58.1]} 4... Nc6 {[%clk 0:02:58.4]} 5. Nc3 {[%clk 0:02:58.1]}
5... Qc7 {[%clk 0:02:58.5]} 6. Be3 {[%clk 0:02:57.2]} 6... Nf6 {[%clk
0:02:55.6]} 7. a3 {[%clk 0:02:56.9]} 7... a6 {[%clk 0:02:41.1]} 8. f4 {[%clk
0:02:51.5]} 8... d6 {[%clk 0:02:25]} 9. Qf3 {[%clk 0:02:46]} 9... Be7 {[%clk
0:02:17]} 10. Be2 {[%clk 0:02:41.8]} 10... O-O {[%clk 0:02:07.3]} 11. h3 {[%clk
0:02:39.1]} 11... e5 {[%clk 0:02:05.2]} 12. Nxc6 {[%clk 0:02:36.4]} 12... bxc6
{[%clk 0:02:06.1]} 13. fxe5 {[%clk 0:02:34.8]} 13... dxe5 {[%clk 0:02:07]} 14.
O-O {[%clk 0:02:27]} 14... Be6 {[%clk 0:02:00.6]} 15. Bd3 {[%clk 0:02:16.1]}
15... Nd7 {[%clk 0:01:54.4]} 16. Qe2 {[%clk 0:02:08.9]} 16... Nc5 {[%clk
0:01:45.5]} 17. Bc4 {[%clk 0:02:06.3]} 17... Rad8 {[%clk 0:01:44.6]} 18. Bxe6
{[%clk 0:02:00.2]} 18... Nxe6 {[%clk 0:01:45.5]} 19. Qxa6 {[%clk 0:01:56]} 19...
Bc5 {[%clk 0:01:39.5]} 20. Bxc5 {[%clk 0:01:50.7]} 20... Nxc5 {[%clk 0:01:40.4]}
21. Qc4 {[%clk 0:01:50.5]} 21... Qb6 {[%clk 0:01:31.3]} 22. Kh1 {[%clk
0:01:45.4]} 22... Rd4 {[%clk 0:01:29.7]} 23. Qa2 {[%clk 0:01:35.6]} 23... Nxe4
{[%clk 0:01:23.2]} 24. Nxe4 {[%clk 0:01:35]} 24... Rxe4 {[%clk 0:01:24.1]} 25.
Rad1 {[%clk 0:01:29.6]} 25... Rd4 {[%clk 0:01:17.1]} 26. Rde1 {[%clk 0:01:12.4]}
26... Qc5 {[%clk 0:01:00]} 27. Re2 {[%clk 0:01:01.9]} 27... e4 {[%clk
0:00:53.3]} 28. Rfe1 {[%clk 0:00:51.5]} 28... Re8 {[%clk 0:00:40.4]} 29. Qb3
{[%clk 0:00:48.5]} 29... Qe5 {[%clk 0:00:33.6]} 30. c3 {[%clk 0:00:44.7]} 30...
Rdd8 {[%clk 0:00:22.7]} 31. Qc4 {[%clk 0:00:40.5]} 31... e3 {[%clk 0:00:22.7]}
32. Qxc6 {[%clk 0:00:30.9]} 32... f5 {[%clk 0:00:16.9]} 33. Qc4+ {[%clk
0:00:20.6]} 33... Kh8 {[%clk 0:00:16.5]} 34. Rxe3 {[%clk 0:00:20]} 34... Qxe3
{[%clk 0:00:17.4]} 35. Rxe3 {[%clk 0:00:20.6]} 35... Rxe3 {[%clk 0:00:18.3]} 36.
b4 {[%clk 0:00:19.1]} 36... Re4 {[%clk 0:00:10.2]} 37. Qc7 {[%clk 0:00:17.3]}
37... Rf8 {[%clk 0:00:09.1]} 38. b5 {[%clk 0:00:15.8]} 38... f4 {[%clk
0:00:05.9]} 39. b6 {[%clk 0:00:15.8]} 39... Re1+ {[%clk 0:00:04.5]} 40. Kh2
{[%clk 0:00:15.8]} 40... Re2 {[%clk 0:00:04.4]} 41. b7 {[%clk 0:00:10.7]} 41...
Rb2 {[%clk 0:00:01.6]} 42. Qc8 {[%clk 0:00:05.2]} 42... Kg8 {[%clk 0:00:01.5]}
43. Qc4+ {[%clk 0:00:04.9]} 43... Kh8 {[%clk 0:00:01.6]} 44. Qe4 {[%clk
0:00:03.8]} 44... f3 {[%clk 0:00:01.3]} 45. b8=Q {[%clk 0:00:03.5]} 1-0

[Event "Early-Titled-Tuesday-Blitz-March-05-2024"]
[Site "Chess.com"]
[Date "2024.03.05"]
[Round "11"]
[White "jk13"]
[Black "Viacheslav92"]
[Result "1-0"]
[WhiteElo "2678"]
[BlackElo "2527"]
[TimeControl "180+1"]
[EndTime "10:09:57 PST"]
[Termination "jk13 won on time"]

1. e4 {[%clk 0:03:00.9]} 1... e5 {[%clk 0:02:59.5]} 2. Nf3 {[%clk 0:03:01.5]}
2... Nc6 {[%clk 0:02:59.3]} 3. Bc4 {[%clk 0:03:02.3]} 3... Bc5 {[%clk
0:02:56.6]} 4. d3 {[%clk 0:03:03.2]} 4... Nf6 {[%clk 0:02:56.3]} 5. c3 {[%clk
0:03:03.9]} 5... d6 {[%clk 0:02:56.2]} 6. Bb3 {[%clk 0:03:04.2]} 6... a6 {[%clk
0:02:56]} 7. Nbd2 {[%clk 0:03:04.9]} 7... Ba7 {[%clk 0:02:56.5]} 8. h3 {[%clk
0:03:05.5]} 8... O-O {[%clk 0:02:54.5]} 9. O-O {[%clk 0:03:05.4]} 9... Nh5
{[%clk 0:02:52.7]} 10. Re1 {[%clk 0:03:05.1]} 10... Nf4 {[%clk 0:02:51.8]} 11.
Nf1 {[%clk 0:03:05.6]} 11... Qf6 {[%clk 0:02:51.4]} 12. Bxf4 {[%clk 0:02:31.4]}
12... Qxf4 {[%clk 0:02:48.6]} 13. Ne3 {[%clk 0:02:31.5]} 13... Ne7 {[%clk
0:02:44.6]} 14. d4 {[%clk 0:02:23.5]} 14... c6 {[%clk 0:02:39.9]} 15. Nc4 {[%clk
0:02:14.2]} 15... exd4 {[%clk 0:02:24.1]} 16. Nxd4 {[%clk 0:02:13.9]} 16... d5
{[%clk 0:02:13.9]} 17. exd5 {[%clk 0:01:54]} 17... Nxd5 {[%clk 0:02:14.8]} 18.
Ne3 {[%clk 0:01:51.3]} 18... Nxe3 {[%clk 0:01:54.3]} 19. Rxe3 {[%clk 0:01:52.2]}
19... c5 {[%clk 0:01:44.5]} 20. Rf3 {[%clk 0:01:37.6]} 20... Qd6 {[%clk
0:01:42.7]} 21. Nf5 {[%clk 0:01:13]} 21... Qxd1+ {[%clk 0:01:36]} 22. Rxd1
{[%clk 0:01:06.6]} 22... Be6 {[%clk 0:00:57.4]} 23. Bxe6 {[%clk 0:00:26.5]}
23... fxe6 {[%clk 0:00:58.3]} 24. Ne7+ {[%clk 0:00:27]} 24... Kh8 {[%clk
0:00:56.3]} 25. Rd7 {[%clk 0:00:27.9]} 25... Rxf3 {[%clk 0:00:49.6]} 26. gxf3
{[%clk 0:00:28.8]} 26... b5 {[%clk 0:00:50.1]} 27. Nc6 {[%clk 0:00:27.5]} 27...
Bb6 {[%clk 0:00:48.6]} 28. Re7 {[%clk 0:00:24.1]} 28... c4 {[%clk 0:00:45]} 29.
Rxe6 {[%clk 0:00:24.4]} 29... Bc5 {[%clk 0:00:44.8]} 30. Ne5 {[%clk 0:00:22]}
30... h6 {[%clk 0:00:37.9]} 31. Rc6 {[%clk 0:00:21.1]} 31... Bf8 {[%clk
0:00:31.4]} 32. f4 {[%clk 0:00:21]} 32... a5 {[%clk 0:00:28.7]} 33. Kg2 {[%clk
0:00:19.5]} 33... Kg8 {[%clk 0:00:28.2]} 34. Kf3 {[%clk 0:00:19.1]} 34... Rd8
{[%clk 0:00:20.6]} 35. Ke3 {[%clk 0:00:18.4]} 35... Kh7 {[%clk 0:00:17.6]} 36.
a4 {[%clk 0:00:18.2]} 36... bxa4 {[%clk 0:00:14.8]} 37. Nxc4 {[%clk 0:00:18.8]}
37... Rb8 {[%clk 0:00:12.6]} 38. Ra6 {[%clk 0:00:17.8]} 38... Bc5+ {[%clk
0:00:07.8]} 39. Kf3 {[%clk 0:00:16.5]} 39... Rc8 {[%clk 0:00:06.9]} 40. Rxa5
{[%clk 0:00:15.8]} 40... Bxf2 {[%clk 0:00:06.9]} 41. Nd6 {[%clk 0:00:13]} 41...
Rc5 {[%clk 0:00:04.9]} 42. Rxa4 {[%clk 0:00:11.7]} 42... Bg1 {[%clk 0:00:04.6]}
43. Rc4 {[%clk 0:00:11.1]} 43... Rh5 {[%clk 0:00:05]} 44. Ne4 {[%clk 0:00:10.1]}
44... Rxh3+ {[%clk 0:00:04.3]} 45. Kg2 {[%clk 0:00:10.4]} 45... Re3 {[%clk
0:00:01.9]} 46. Kxg1 {[%clk 0:00:10.6]} 46... Re2 {[%clk 0:00:02.2]} 47. b4
{[%clk 0:00:10.2]} 47... Rc2 {[%clk 0:00:03.1]} 48. b5 {[%clk 0:00:10.2]} 48...
h5 {[%clk 0:00:04]} 49. b6 {[%clk 0:00:09.4]} 49... Rb2 {[%clk 0:00:04.9]} 50.
Rb4 {[%clk 0:00:09.7]} 1-0

[Event "Early-Titled-Tuesday-Blitz-March-05-2024"]
[Site "Chess.com"]
[Date "2024.03.05"]
[Round "11"]
[White "mortngabriel"]
[Black "Preobrazhenska_D2011"]
[Result "0-1"]
[WhiteElo "2510"]
[BlackElo "2446"]
[TimeControl "180+1"]
[EndTime "10:09:58 PST"]
[Termination "Preobrazhenska_D2011 won on time"]

1. e4 {[%clk 0:02:57.5]} 1... c5 {[%clk 0:02:59.6]} 2. d4 {[%clk 0:02:54.1]}
2... cxd4 {[%clk 0:02:58.9]} 3. c3 {[%clk 0:02:55]} 3... dxc3 {[%clk 0:02:58.3]}
4. Bc4 {[%clk 0:02:55.9]} 4... d6 {[%clk 0:02:54.4]} 5. Nf3 {[%clk 0:02:55.1]}
5... Nc6 {[%clk 0:02:45.1]} 6. O-O {[%clk 0:02:51.6]} 6... e6 {[%clk 0:02:40.7]}
7. Nxc3 {[%clk 0:02:32.3]} 7... Nf6 {[%clk 0:02:39]} 8. Qe2 {[%clk 0:02:29.5]}
8... Be7 {[%clk 0:02:37.2]} 9. Rd1 {[%clk 0:02:29.7]} 9... e5 {[%clk 0:02:17.3]}
10. Bxf7+ {[%clk 0:02:02.3]} 10... Kxf7 {[%clk 0:02:00.8]} 11. Ng5+ {[%clk
0:02:02.8]} 11... Ke8 {[%clk 0:01:45.5]} 12. Qc4 {[%clk 0:02:02.2]} 12... Rf8
{[%clk 0:01:34.5]} 13. Be3 {[%clk 0:01:42.1]} 13... h6 {[%clk 0:01:33.7]} 14.
Nf3 {[%clk 0:01:16.8]} 14... Bg4 {[%clk 0:01:31.5]} 15. Rd2 {[%clk 0:01:06.7]}
15... Qd7 {[%clk 0:00:53.6]} 16. Rad1 {[%clk 0:01:02.7]} 16... Qe6 {[%clk
0:00:49.7]} 17. Qb5 {[%clk 0:00:59.8]} 17... Kf7 {[%clk 0:00:46.2]} 18. Qxb7
{[%clk 0:00:57.4]} 18... Qd7 {[%clk 0:00:36.2]} 19. Qb3+ {[%clk 0:00:51.5]}
19... Be6 {[%clk 0:00:36.2]} 20. Qa4 {[%clk 0:00:41.6]} 20... Kg8 {[%clk
0:00:33.8]} 21. Bc5 {[%clk 0:00:34.7]} 21... Nd4 {[%clk 0:00:20.3]} 22. Qxd7
{[%clk 0:00:20.7]} 22... Nxf3+ {[%clk 0:00:17.6]} 23. gxf3 {[%clk 0:00:20.2]}
23... Nxd7 {[%clk 0:00:13.3]} 24. Bxd6 {[%clk 0:00:20.4]} 24... Bg5 {[%clk
0:00:12.5]} 25. Bxf8 {[%clk 0:00:14.2]} 25... Bxd2 {[%clk 0:00:12.2]} 26. Rxd2
{[%clk 0:00:13.7]} 26... Rxf8 {[%clk 0:00:12.8]} 27. Rd6 {[%clk 0:00:11.9]}
27... Kf7 {[%clk 0:00:10.4]} 28. Kg2 {[%clk 0:00:11.8]} 28... Ke7 {[%clk
0:00:10.5]} 29. Ra6 {[%clk 0:00:12.2]} 29... Rb8 {[%clk 0:00:07.6]} 30. b3
{[%clk 0:00:12.1]} 30... Rb7 {[%clk 0:00:06.2]} 31. Nd1 {[%clk 0:00:10.7]} 31...
Rc7 {[%clk 0:00:06.5]} 32. Ne3 {[%clk 0:00:10.7]} 32... Nc5 {[%clk 0:00:06.6]}
33. Ra5 {[%clk 0:00:09.9]} 33... Nd3 {[%clk 0:00:06.7]} 34. Ra6 {[%clk
0:00:05.9]} 34... Nf4+ {[%clk 0:00:06.9]} 35. Kg3 {[%clk 0:00:04.6]} 35... Bc8
{[%clk 0:00:06.1]} 36. Ra5 {[%clk 0:00:04.2]} 36... Kf6 {[%clk 0:00:04.5]} 37.
h4 {[%clk 0:00:03.8]} 37... Bb7 {[%clk 0:00:03.2]} 38. Rb5 {[%clk 0:00:03.1]}
38... a6 {[%clk 0:00:03.5]} 39. Rb6+ {[%clk 0:00:02.8]} 39... Kf7 {[%clk
0:00:04.2]} 40. Rd6 {[%clk 0:00:02.1]} 40... Re7 {[%clk 0:00:03.9]} 41. Rb6
{[%clk 0:00:02.5]} 41... Rc7 {[%clk 0:00:03.7]} 42. Rd6 {[%clk 0:00:02.3]} 42...
Bc6 {[%clk 0:00:04]} 43. Nd5 {[%clk 0:00:01.7]} 43... Bxd5 {[%clk 0:00:03.8]}
44. exd5 {[%clk 0:00:02.3]} 44... Rc1 {[%clk 0:00:04.2]} 45. Rxa6 {[%clk
0:00:02.2]} 45... Nxd5 {[%clk 0:00:04]} 0-1

[Event "Early-Titled-Tuesday-Blitz-March-05-2024"]
[Site "Chess.com"]
[Date "2024.03.05"]
[Round "11"]
[White "awesomevishesh"]
[Black "Igor_Lysyj"]
[Result "0-1"]
[WhiteElo "2650"]
[BlackElo "2821"]
[TimeControl "180+1"]
[EndTime "10:10:03 PST"]
[Termination "Igor_Lysyj won on time"]

1. d4 {[%clk 0:02:59]} 1... d5 {[%clk 0:02:58.4]} 2. c4 {[%clk 0:02:58.3]} 2...
e6 {[%clk 0:02:58.9]} 3. Nf3 {[%clk 0:02:58.1]} 3... Nf6 {[%clk 0:02:58.5]} 4.
g3 {[%clk 0:02:58.4]} 4... Be7 {[%clk 0:02:58]} 5. Bg2 {[%clk 0:02:58.3]} 5...
O-O {[%clk 0:02:58.1]} 6. O-O {[%clk 0:02:58.5]} 6... dxc4 {[%clk 0:02:58.5]} 7.
Qa4 {[%clk 0:02:56.3]} 7... a6 {[%clk 0:02:58]} 8. Qxc4 {[%clk 0:02:56.1]} 8...
b5 {[%clk 0:02:58.1]} 9. Qc2 {[%clk 0:02:56.3]} 9... Bb7 {[%clk 0:02:57.9]} 10.
Bd2 {[%clk 0:02:56.6]} 10... Be4 {[%clk 0:02:54.1]} 11. Qc1 {[%clk 0:02:56.1]}
11... c6 {[%clk 0:02:54.6]} 12. Be3 {[%clk 0:02:45.5]} 12... Nbd7 {[%clk
0:02:51.8]} 13. Nc3 {[%clk 0:02:36.2]} 13... Bg6 {[%clk 0:02:51.4]} 14. Nh4
{[%clk 0:02:32.8]} 14... Bh5 {[%clk 0:02:50.4]} 15. Nf3 {[%clk 0:01:51.6]} 15...
Rc8 {[%clk 0:02:47.2]} 16. Rd1 {[%clk 0:01:49.8]} 16... Nd5 {[%clk 0:02:43]} 17.
Ne4 {[%clk 0:01:39.3]} 17... Nxe3 {[%clk 0:02:37.1]} 18. Qxe3 {[%clk 0:01:38.8]}
18... Qb6 {[%clk 0:02:31.9]} 19. Rac1 {[%clk 0:01:19.2]} 19... Rfd8 {[%clk
0:02:30.3]} 20. Ne1 {[%clk 0:01:08.5]} 20... Nf6 {[%clk 0:02:15.9]} 21. Nc5
{[%clk 0:01:03.6]} 21... Nd5 {[%clk 0:02:14.4]} 22. Qd2 {[%clk 0:00:56.7]} 22...
Nf6 {[%clk 0:02:12]} 23. Qe3 {[%clk 0:00:48.4]} 23... Bg6 {[%clk 0:01:54.2]} 24.
Ned3 {[%clk 0:00:38.9]} 24... Bxd3 {[%clk 0:01:48.4]} 25. Rxd3 {[%clk
0:00:35.9]} 25... h6 {[%clk 0:01:30.2]} 26. a3 {[%clk 0:00:21]} 26... a5 {[%clk
0:01:28.8]} 27. Rc2 {[%clk 0:00:19.6]} 27... a4 {[%clk 0:01:10.3]} 28. h3 {[%clk
0:00:19.3]} 28... Qb8 {[%clk 0:00:55.9]} 29. Qc1 {[%clk 0:00:18.2]} 29... Qb6
{[%clk 0:00:50.9]} 30. e3 {[%clk 0:00:15.2]} 30... Rc7 {[%clk 0:00:42.1]} 31.
Ne4 {[%clk 0:00:14.2]} 31... Nxe4 {[%clk 0:00:31.9]} 32. Bxe4 {[%clk 0:00:14]}
32... Rdc8 {[%clk 0:00:32.4]} 33. Rdc3 {[%clk 0:00:13.9]} 33... c5 {[%clk
0:00:32.9]} 34. dxc5 {[%clk 0:00:13.8]} 34... Bxc5 {[%clk 0:00:28.6]} 35. h4
{[%clk 0:00:13]} 35... h5 {[%clk 0:00:28]} 36. Kg2 {[%clk 0:00:13.2]} 36... g6
{[%clk 0:00:28.2]} 37. Rd3 {[%clk 0:00:11.8]} 37... Be7 {[%clk 0:00:26.6]} 38.
Rxc7 {[%clk 0:00:11.7]} 38... Rxc7 {[%clk 0:00:26.6]} 39. Qd1 {[%clk 0:00:12.1]}
39... Kg7 {[%clk 0:00:25.8]} 40. Rd2 {[%clk 0:00:05.8]} 40... Bf6 {[%clk
0:00:26]} 41. Bf3 {[%clk 0:00:05.6]} 41... Qc5 {[%clk 0:00:23.1]} 42. b3 {[%clk
0:00:03.5]} 42... Qxa3 {[%clk 0:00:22.4]} 43. bxa4 {[%clk 0:00:03.8]} 43... bxa4
{[%clk 0:00:22.7]} 44. Rd7 {[%clk 0:00:03.4]} 44... Rxd7 {[%clk 0:00:22.1]} 45.
Qxd7 {[%clk 0:00:04.3]} 45... Qb4 {[%clk 0:00:22]} 46. Qa7 {[%clk 0:00:03.9]}
46... a3 {[%clk 0:00:22.1]} 47. Bd1 {[%clk 0:00:03.6]} 47... Qb2 {[%clk
0:00:21.7]} 48. Bf3 {[%clk 0:00:02.1]} 48... a2 {[%clk 0:00:21.7]} 0-1

[Event "Early-Titled-Tuesday-Blitz-March-05-2024"]
[Site "Chess.com"]
[Date "2024.03.05"]
[Round "11"]
[White "LileKoridze"]
[Black "only_strong_moves"]
[Result "1/2-1/2"]
[WhiteElo "2445"]
[BlackElo "2560"]
[TimeControl "180+1"]
[EndTime "10:10:05 PST"]
[Termination "Game drawn by repetition"]

1. d4 {[%clk 0:03:00.9]} 1... Nf6 {[%clk 0:02:56]} 2. c4 {[%clk 0:03:01.1]} 2...
e6 {[%clk 0:02:56.2]} 3. Nc3 {[%clk 0:03:01.2]} 3... d5 {[%clk 0:02:56.3]} 4.
Nf3 {[%clk 0:03:00.1]} 4... c5 {[%clk 0:02:56.5]} 5. cxd5 {[%clk 0:03:00.1]}
5... cxd4 {[%clk 0:02:56.6]} 6. Nxd4 {[%clk 0:03:00.1]} 6... Nxd5 {[%clk
0:02:56.4]} 7. Nxd5 {[%clk 0:02:57.2]} 7... Qxd5 {[%clk 0:02:54.6]} 8. e3 {[%clk
0:02:57.4]} 8... e5 {[%clk 0:02:48.5]} 9. Bb5+ {[%clk 0:02:57]} 9... Bd7 {[%clk
0:02:48]} 10. Bxd7+ {[%clk 0:02:54.5]} 10... Nxd7 {[%clk 0:02:48.9]} 11. Nf3
{[%clk 0:02:54.3]} 11... Bb4+ {[%clk 0:02:48.4]} 12. Bd2 {[%clk 0:02:54.4]}
12... Bxd2+ {[%clk 0:02:48.5]} 13. Qxd2 {[%clk 0:02:54.6]} 13... Qxd2+ {[%clk
0:02:49.1]} 14. Nxd2 {[%clk 0:02:55.5]} 14... Rc8 {[%clk 0:02:48]} 15. Ke2
{[%clk 0:02:55.2]} 15... Ke7 {[%clk 0:02:45.8]} 16. Rac1 {[%clk 0:02:55]} 16...
Nb6 {[%clk 0:02:44.9]} 17. b3 {[%clk 0:02:52.2]} 17... f6 {[%clk 0:02:44.8]} 18.
Ne4 {[%clk 0:02:51.6]} 18... Nd5 {[%clk 0:02:45]} 19. Rhd1 {[%clk 0:02:49.3]}
19... Rxc1 {[%clk 0:02:33.5]} 20. Rxc1 {[%clk 0:02:36.9]} 20... b6 {[%clk
0:02:34]} 21. Nd2 {[%clk 0:02:35.9]} 21... Rd8 {[%clk 0:02:33]} 22. g3 {[%clk
0:02:32.9]} 22... Rd7 {[%clk 0:02:29.9]} 23. Rc8 {[%clk 0:02:32.4]} 23... Ke6
{[%clk 0:02:26.1]} 24. a3 {[%clk 0:02:30.2]} 24... h6 {[%clk 0:02:24.6]} 25. e4
{[%clk 0:02:29.5]} 25... Ne7 {[%clk 0:02:23]} 26. Rc4 {[%clk 0:02:29.5]} 26...
Rd6 {[%clk 0:02:19.8]} 27. Rc7 {[%clk 0:02:28.4]} 27... Rd7 {[%clk 0:02:18.2]}
28. Rc4 {[%clk 0:02:28.6]} 28... g6 {[%clk 0:02:16.4]} 29. Nf1 {[%clk
0:02:27.1]} 29... f5 {[%clk 0:02:16.5]} 30. f3 {[%clk 0:02:26.8]} 30... b5
{[%clk 0:02:12.9]} 31. Rc5 {[%clk 0:02:26.4]} 31... a6 {[%clk 0:02:12.7]} 32.
Nd2 {[%clk 0:02:25.3]} 32... Rd6 {[%clk 0:02:12.3]} 33. Nb1 {[%clk 0:02:25.5]}
33... Nc6 {[%clk 0:02:12.5]} 34. Ke3 {[%clk 0:02:23.3]} 34... Nd4 {[%clk
0:02:13.1]} 35. Rc3 {[%clk 0:02:23.4]} 35... f4+ {[%clk 0:02:11.3]} 36. gxf4
{[%clk 0:02:23.3]} 36... exf4+ {[%clk 0:02:12.1]} 37. Kf2 {[%clk 0:02:23.8]}
37... g5 {[%clk 0:02:09.6]} 38. b4 {[%clk 0:02:11.6]} 38... Nc6 {[%clk
0:02:07.2]} 39. Ke2 {[%clk 0:02:08.6]} 39... Ne5 {[%clk 0:02:06.2]} 40. Nd2
{[%clk 0:02:08.4]} 40... h5 {[%clk 0:02:04.1]} 41. h3 {[%clk 0:02:07.6]} 41...
Kf6 {[%clk 0:02:00.5]} 42. Rc8 {[%clk 0:02:06.8]} 42... g4 {[%clk 0:01:58.8]}
43. hxg4 {[%clk 0:02:06.7]} 43... hxg4 {[%clk 0:01:59.7]} 44. fxg4 {[%clk
0:02:06.4]} 44... Kg5 {[%clk 0:01:33.6]} 45. Rc5 {[%clk 0:02:02.4]} 45... Kf6
{[%clk 0:01:30.5]} 46. g5+ {[%clk 0:01:58]} 46... Ke6 {[%clk 0:01:30.8]} 47. Nf3
{[%clk 0:01:57.9]} 47... Nc4 {[%clk 0:01:22.5]} 48. g6 {[%clk 0:01:56]} 48...
Nxa3 {[%clk 0:00:52.4]} 49. Ng5+ {[%clk 0:01:38.2]} 49... Ke7 {[%clk 0:00:50.1]}
50. g7 {[%clk 0:01:04.1]} 50... Rg6 {[%clk 0:00:48.2]} 51. Rc7+ {[%clk
0:01:03.8]} 51... Kd6 {[%clk 0:00:43.7]} 52. Ne6 {[%clk 0:00:55.3]} 52... Nc4
{[%clk 0:00:34.5]} 53. Rc8 {[%clk 0:00:55.3]} 53... Kxe6 {[%clk 0:00:26.3]} 54.
g8=Q+ {[%clk 0:00:55.5]} 54... Rxg8 {[%clk 0:00:27]} 55. Rxg8 {[%clk 0:00:56.3]}
55... Ke5 {[%clk 0:00:27.7]} 56. Re8+ {[%clk 0:00:56.1]} 56... Kd4 {[%clk
0:00:27.4]} 57. Kf3 {[%clk 0:00:55.9]} 57... Ne5+ {[%clk 0:00:27.5]} 58. Kxf4
{[%clk 0:00:56]} 58... Nd3+ {[%clk 0:00:28.1]} 59. Kf5 {[%clk 0:00:55.6]} 59...
Nxb4 {[%clk 0:00:29]} 60. e5 {[%clk 0:00:55.4]} 60... Nd5 {[%clk 0:00:28]} 61.
e6 {[%clk 0:00:54.5]} 61... b4 {[%clk 0:00:27.6]} 62. Rd8 {[%clk 0:00:54.6]}
62... b3 {[%clk 0:00:24.5]} 63. e7 {[%clk 0:00:52.9]} 63... b2 {[%clk
0:00:24.4]} 64. e8=Q {[%clk 0:00:52.5]} 64... b1=Q+ {[%clk 0:00:24.3]} 65. Ke6
{[%clk 0:00:44.6]} 65... Qe4+ {[%clk 0:00:18.9]} 66. Kf7 {[%clk 0:00:44.8]}
66... Qf5+ {[%clk 0:00:17.6]} 67. Kg8 {[%clk 0:00:43.4]} 67... Qg5+ {[%clk
0:00:15.6]} 68. Kh8 {[%clk 0:00:43.4]} 68... Qf6+ {[%clk 0:00:15.4]} 69. Kg8
{[%clk 0:00:42.8]} 69... Qg5+ {[%clk 0:00:12.7]} 70. Kh8 {[%clk 0:00:42.9]}
70... Qh6+ {[%clk 0:00:11.3]} 71. Kg8 {[%clk 0:00:42.8]} 71... Qg5+ {[%clk
0:00:08.9]} 1/2-1/2

[Event "Early-Titled-Tuesday-Blitz-March-05-2024"]
[Site "Chess.com"]
[Date "2024.03.05"]
[Round "11"]
[White "Muracle"]
[Black "Mikhail_Golubev"]
[Result "1-0"]
[WhiteElo "2557"]
[BlackElo "2650"]
[TimeControl "180+1"]
[EndTime "10:10:06 PST"]
[Termination "Muracle won on time"]

1. d4 {[%clk 0:02:54.1]} 1... Nf6 {[%clk 0:02:59.4]} 2. g3 {[%clk 0:02:53.9]}
2... c5 {[%clk 0:02:57.1]} 3. d5 {[%clk 0:02:53.7]} 3... e6 {[%clk 0:02:56.8]}
4. c4 {[%clk 0:02:53.8]} 4... exd5 {[%clk 0:02:56.4]} 5. cxd5 {[%clk 0:02:54.7]}
5... b5 {[%clk 0:02:52.2]} 6. Bg2 {[%clk 0:02:54.8]} 6... d6 {[%clk 0:02:41.8]}
7. e4 {[%clk 0:02:54.2]} 7... Nbd7 {[%clk 0:02:35.2]} 8. Ne2 {[%clk 0:02:51.1]}
8... g6 {[%clk 0:02:34.2]} 9. O-O {[%clk 0:02:51.3]} 9... Bg7 {[%clk 0:02:34.2]}
10. Bf4 {[%clk 0:02:52]} 10... Qe7 {[%clk 0:02:28.9]} 11. Nbc3 {[%clk 0:02:52]}
11... a6 {[%clk 0:02:23.8]} 12. b4 {[%clk 0:01:54]} 12... Nh5 {[%clk 0:01:54.1]}
13. bxc5 {[%clk 0:01:48.3]} 13... Nxf4 {[%clk 0:01:52.6]} 14. gxf4 {[%clk
0:01:49.2]} 14... Nxc5 {[%clk 0:01:51.1]} 15. Nd4 {[%clk 0:01:48.5]} 15... O-O
{[%clk 0:01:50.8]} 16. Rc1 {[%clk 0:01:41]} 16... b4 {[%clk 0:01:03.1]} 17. Nc6
{[%clk 0:01:37.1]} 17... Qh4 {[%clk 0:00:53.2]} 18. Ne2 {[%clk 0:01:26.5]} 18...
a5 {[%clk 0:00:53.3]} 19. e5 {[%clk 0:01:24.6]} 19... Ba6 {[%clk 0:00:40.7]} 20.
exd6 {[%clk 0:01:16.7]} 20... Nd3 {[%clk 0:00:41]} 21. Rc2 {[%clk 0:01:06.5]}
21... Nxf4 {[%clk 0:00:41]} 22. Nxf4 {[%clk 0:01:05.8]} 22... Qxf4 {[%clk
0:00:33.9]} 23. Re1 {[%clk 0:00:55.2]} 23... Qxd6 {[%clk 0:00:32.9]} 24. Ne7+
{[%clk 0:00:55.7]} 24... Kh8 {[%clk 0:00:33.4]} 25. Rc6 {[%clk 0:00:56.1]} 25...
Qf4 {[%clk 0:00:19.5]} 26. Re4 {[%clk 0:00:55.5]} 26... Qg5 {[%clk 0:00:19.3]}
27. h4 {[%clk 0:00:55.3]} 27... Qh6 {[%clk 0:00:18]} 28. Nf5 {[%clk 0:00:55.1]}
28... Qh5 {[%clk 0:00:14.8]} 29. Qxh5 {[%clk 0:00:50.8]} 29... gxh5 {[%clk
0:00:15.7]} 30. Nxg7 {[%clk 0:00:45.5]} 30... Kxg7 {[%clk 0:00:15.6]} 31. Re5
{[%clk 0:00:46.2]} 31... Ra7 {[%clk 0:00:13.6]} 32. Rg5+ {[%clk 0:00:45]} 32...
Kh8 {[%clk 0:00:11.9]} 33. Rxh5 {[%clk 0:00:45.5]} 33... a4 {[%clk 0:00:11.5]}
34. Be4 {[%clk 0:00:31.7]} 34... f6 {[%clk 0:00:11.8]} 35. Bxh7 {[%clk
0:00:18.1]} 35... Rxh7 {[%clk 0:00:12.7]} 36. Rxh7+ {[%clk 0:00:18.3]} 36...
Kxh7 {[%clk 0:00:13.6]} 37. Rxa6 {[%clk 0:00:18.9]} 37... b3 {[%clk 0:00:13.7]}
38. Rxa4 {[%clk 0:00:17]} 38... Rb8 {[%clk 0:00:10.8]} 39. axb3 {[%clk
0:00:15.4]} 39... Rxb3 {[%clk 0:00:11.7]} 40. Rd4 {[%clk 0:00:15.4]} 40... Rb7
{[%clk 0:00:11]} 41. d6 {[%clk 0:00:16]} 41... Rd7 {[%clk 0:00:11.5]} 42. Kg2
{[%clk 0:00:14.4]} 42... Kg6 {[%clk 0:00:12.1]} 43. Kg3 {[%clk 0:00:14.6]} 43...
Kf5 {[%clk 0:00:12.7]} 44. Rd1 {[%clk 0:00:14.9]} 44... Rg7+ {[%clk 0:00:08.8]}
45. Kf3 {[%clk 0:00:15.3]} 45... Ke6 {[%clk 0:00:08.8]} 46. d7 {[%clk
0:00:14.7]} 46... Rxd7 {[%clk 0:00:06.7]} 47. Rxd7 {[%clk 0:00:15.6]} 47... Kxd7
{[%clk 0:00:07.3]} 48. Kg4 {[%clk 0:00:16]} 48... Ke6 {[%clk 0:00:07.3]} 49. Kh5
{[%clk 0:00:16.5]} 49... Kf5 {[%clk 0:00:07.4]} 50. Kh6 {[%clk 0:00:15]} 50...
Kg4 {[%clk 0:00:07.5]} 51. h5 {[%clk 0:00:15.5]} 51... f5 {[%clk 0:00:06.3]} 52.
Kg6 {[%clk 0:00:15.7]} 52... f4 {[%clk 0:00:06.7]} 53. h6 {[%clk 0:00:12.7]}
53... Kf3 {[%clk 0:00:06.5]} 54. Kg5 {[%clk 0:00:12.9]} 54... Kxf2 {[%clk
0:00:02]} 55. Kxf4 {[%clk 0:00:13.1]} 1-0